bitfinex-derivatives/quotes_BNBF0:USTF0_20250617
["timestamp","ask_amount","ask_price","bid_price","bid_amount"]
[1750121052367,0.98341046,651.32,650.44,0.30748416]
[1750121052668,2.27721983,651.37,650.44,0.30748416]
[1750121052867,2.27721983,651.36,650.44,0.30748416]
[1750121053068,2.27721983,651.35,650.44,0.30748416]
[1750121053268,2.27721983,651.34,650.44,0.30748416]
[1750121053468,2.27721983,651.33,650.44,0.30748416]
[1750121053668,0.98341046,651.32,650.44,0.30748416]
[1750121053867,2.27644228,651.39,650.44,0.30748416]
[1750121054070,1.14235321,651.4,650.44,0.30748416]
[1750121055665,1.14235321,651.41,650.44,0.30748416]
[1750121056367,2.27522189,651.41,650.44,0.30748416]
[1750121056771,2.27522189,651.4,650.44,0.30748416]
[1750121056970,2.27522189,651.39,650.44,0.30748416]
[1750121057167,2.27522189,651.38,650.44,0.30748416]
[1750121057370,2.27522189,651.37,650.44,0.30748416]
[1750121057566,2.27522189,651.36,650.44,0.30748416]
[1750121057769,0.98218936,651.35,650.44,0.30748416]
[1750121057966,2.27463481,651.42,650.44,0.30748416]
[1750121058367,0.98168848,651.41,650.44,0.30748416]
[1750121058569,2.27413393,651.42,650.44,0.30748416]
[1750121058769,2.27413393,651.41,650.44,0.30748416]
[1750121058972,2.27413393,651.4,650.44,0.30748416]
[1750121059172,2.27413393,651.39,650.44,0.30748416]
[1750121059472,2.27413393,651.38,650.44,0.30748416]
[1750121059671,2.2736718,651.37,650.44,0.30748416]
[1750121059871,2.2736718,651.36,650.44,0.30748416]
[1750121060070,0.98122635,651.35,650.44,0.30748416]
[1750121060375,3.80784404,652.25,650.44,0.30748416]
[1750121060376,3.93609969,651.53,650.44,0.30748416]
[1750121060681,2.79374648,651.52,650.44,0.30748416]
[1750121060870,2.79374648,651.51,650.44,0.30748416]
[1750121061179,2.79374648,651.5,650.44,0.30748416]
[1750121061369,2.79374648,651.49,650.44,0.30748416]
[1750121061571,2.79377561,651.48,650.44,0.30748416]
[1750121061770,2.27309392,651.47,650.44,0.30748416]
[1750121061973,2.27309392,651.46,650.44,0.30748416]
[1750121062175,2.27309392,651.45,650.44,0.30748416]
[1750121062372,2.27266137,651.44,650.44,0.30748416]
[1750121062569,2.27266137,651.43,650.44,0.30748416]
[1750121062871,2.27266137,651.42,650.44,0.30748416]
[1750121063071,2.27266137,651.41,650.44,0.30748416]
[1750121063275,2.27266137,651.4,650.44,0.30748416]
[1750121063471,1.14235321,651.6,650.44,0.30748416]
[1750121063472,2.27266137,651.39,650.44,0.30748416]
[1750121063673,0.9807938,651.38,650.44,0.30748416]
[1750121063871,1.14235321,651.57,650.44,0.30748416]
[1750121064074,0.9807938,651.56,650.44,0.30748416]
[1750121064273,0.9807938,651.55,650.44,0.30748416]
[1750121064473,0.9807938,651.54,650.44,0.30748416]
[1750121064773,0.9807938,651.53,650.44,0.30748416]
[1750121064976,0.52046971,651.55,650.44,0.30748416]
[1750121064977,0.9807938,651.52,650.44,0.30748416]
[1750121065174,0.98042943,651.51,650.44,0.30748416]
[1750121065372,1.14235321,651.47,650.44,0.30748416]
[1750121065679,2.27119165,651.46,650.44,0.30748416]
[1750121065978,1.14235321,651.42,650.44,0.30748416]
[1750121066274,0.98042943,651.41,650.44,0.30748416]
[1750121066576,0.98063678,651.4,650.44,0.30748416]
[1750121066776,0.98063678,651.39,650.44,0.30748416]
[1750121066971,2.79165817,651.41,650.44,0.30748416]
[1750121067172,2.79144024,651.4,650.44,0.30748416]
[1750121067376,2.79144024,651.39,650.44,0.30748416]
[1750121067576,2.79144024,651.38,650.44,0.30748416]
[1750121067877,0.98063678,651.37,650.44,0.30748416]
[1750121068274,0.98006217,651.36,650.44,0.30748416]
[1750121068674,1.14235321,651.41,650.44,0.30748416]
[1750121068675,0.98006217,651.35,650.44,0.30748416]
[1750121068878,1.50014923,651.41,650.44,0.30748416]
[1750121069375,2.12241538,651.4,650.44,0.30748416]
[1750121069579,1.66243927,651.41,650.44,0.30748416]
[1750121069878,0.98008024,651.4,650.44,0.30748416]
[1750121070078,0.98008024,651.39,650.44,0.30748416]
[1750121070378,1.14235321,651.41,650.44,0.30748416]
[1750121070581,2.64249234,651.4,650.44,0.30748416]
[1750121070879,1.50013913,651.4,649.56,1.51413901]
[1750121071174,0.98006461,651.39,649.58,0.30789125]
[1750121071378,0.98006461,651.38,649.58,0.30789125]
[1750121071573,0.98006461,651.37,649.58,0.30789125]
[1750121071778,0.98006461,651.36,649.58,0.30789125]
[1750121071972,1.50013913,651.39,649.58,0.30789125]
[1750121072176,0.98006461,651.38,649.58,0.30789125]
[1750121072877,0.97955254,651.38,649.58,0.30789125]
[1750121073280,1.49934759,651.38,649.58,0.30789125]
[1750121074380,1.49934759,651.38,649.58,1.82203026]
[1750121074583,0.51979505,651.38,649.58,1.82203026]
[1750121074880,2.26912567,651.39,649.58,0.30789125]
[1750121075078,2.26912567,651.38,649.58,0.30789125]
[1750121075275,2.26912567,651.37,649.58,0.30789125]
[1750121075480,2.26912567,651.36,649.58,0.30789125]
[1750121075678,2.26870859,651.35,649.58,0.30789125]
[1750121075980,2.26870859,651.34,649.6,1.51413901]
[1750121076183,2.26870859,651.33,649.62,0.30787229]
[1750121076382,2.26870859,651.32,649.62,0.30787229]
[1750121076579,0.97913546,651.31,649.62,0.30787229]
[1750121076779,3.93016951,651.43,649.63,1.51413901]
[1750121076979,2.7878163,651.42,649.65,0.30785807]
[1750121077177,2.2682214,651.42,649.65,0.30785807]
[1750121077482,3.41057461,651.42,649.65,0.30785807]
[1750121077677,2.7876971,651.41,649.65,0.30785807]
[1750121077883,2.2682214,651.41,649.65,0.30785807]
[1750121078482,1.29562876,651.4,649.65,0.30785807]
[1750121078779,2.27476422,651.41,649.65,0.30785807]
[1750121079583,3.41711743,651.41,649.65,0.30785807]
[1750121079782,2.27476422,651.4,649.65,0.30785807]
[1750121080581,3.41711743,651.4,649.65,0.30785807]
[1750121080779,2.27476422,651.39,649.65,0.30785807]
[1750121081182,0.98234447,651.38,649.65,0.30785807]
[1750121081383,2.27797323,651.39,649.65,0.30785807]
[1750121081584,3.42032644,651.39,649.65,1.82199708]
[1750121081782,2.27797323,651.38,649.65,1.82199708]
[1750121082084,2.27797323,651.38,649.66,1.51413901]
[1750121082279,2.27797323,651.38,649.68,0.30784386]
[1750121082787,3.42032644,651.38,649.68,0.30784386]
[1750121082982,2.27797323,651.37,649.68,0.30784386]
[1750121083383,1.14235321,651.35,649.74,1.51413901]
[1750121083586,1.14235321,651.34,649.76,0.30780595]
[1750121083784,1.14235321,651.33,649.76,1.82194496]
[1750121084183,3.42065259,651.33,649.76,1.82194496]
[1750121084384,2.27829938,651.32,649.76,1.82194496]
[1750121084585,3.42065259,651.32,649.77,1.51413901]
[1750121084888,2.27829938,651.31,649.83,1.51413901]
[1750121085084,2.27829938,651.3,649.85,0.30776332]
[1750121085284,2.27829938,651.29,649.85,0.30776332]
[1750121085492,2.27829938,651.28,649.85,0.30776332]
[1750121085786,2.27829938,651.27,649.86,1.51413901]
[1750121085989,2.27829938,651.26,649.88,0.30774912]
[1750121086191,0.98234447,651.25,649.88,0.30774912]
[1750121086491,2.27864206,651.32,649.88,1.82188813]
[1750121086693,0.98315036,651.31,649.89,1.51413901]
[1750121086887,3.42209098,651.32,649.91,0.30773491]
[1750121087091,0.98315036,651.31,649.91,0.30773491]
[1750121087292,1.29659771,651.31,649.91,0.30773491]
[1750121087588,3.42210128,651.31,649.92,1.51413901]
[1750121087786,2.27974807,651.3,649.94,0.30772071]
[1750121087987,1.14235321,651.29,649.94,0.30772071]
[1750121088186,3.42210128,651.29,649.94,0.30772071]
[1750121088487,2.28011339,651.28,649.94,0.30772071]
[1750121088686,2.28011339,651.27,649.94,1.82185972]
[1750121088887,2.28011339,651.26,649.94,1.82185972]
[1750121089089,2.28011339,651.25,649.94,1.82185972]
[1750121089290,2.28011339,651.24,649.95,1.51413901]
[1750121089492,2.28089751,651.23,649.97,1.82184551]
[1750121089790,2.28089751,651.22,649.99,0.30769704]
[1750121089992,0.98315036,651.21,649.99,0.30769704]
[1750121090293,2.28089644,651.28,649.99,0.30769704]
[1750121090493,2.28089644,651.28,649.99,1.82183605]
[1750121090694,3.42324965,651.28,650.01,1.51413901]
[1750121090994,2.28089644,651.27,650.03,0.3076781]
[1750121091595,2.28089644,651.27,650.03,1.82181711]
[1750121092390,2.28248388,651.26,650.04,1.51413901]
[1750121092590,3.42483709,651.26,650.06,1.82180291]
[1750121092796,2.28248388,651.25,650.08,0.30765444]
[1750121093492,2.28248388,651.25,650.09,1.51413901]
[1750121093796,3.42483709,651.25,650.11,0.30764024]
[1750121093990,2.28248388,651.24,650.11,0.30764024]
[1750121094295,2.28248388,651.24,650.11,1.82177925]
[1750121094492,0.98476325,651.23,650.16,1.51413901]
[1750121094695,2.28379159,651.28,650.17,0.30761185]
[1750121095096,0.98500346,651.27,650.17,0.30761185]
[1750121095298,2.2840318,651.27,650.17,1.82175086]
[1750121095498,2.2840318,651.26,650.19,1.51413901]
[1750121095798,2.2840318,651.25,650.2,0.30759766]
[1750121095994,0.98500346,651.24,650.2,0.30759766]
[1750121096198,2.28447746,651.27,650.2,0.30759766]
[1750121096398,2.28447746,651.26,650.2,0.30759766]
[1750121096600,0.98500346,651.25,650.2,0.30759766]
[1750121096800,3.42755803,651.29,650.2,0.30759766]
[1750121097099,2.28520482,651.28,650.2,0.30759766]
[1750121097300,2.28520482,651.27,650.2,0.30759766]
[1750121097494,0.98500346,651.26,650.2,0.30759766]
[1750121097694,3.42827137,651.29,650.2,0.30759766]
[1750121097896,2.28734539,651.28,650.2,0.30759766]
[1750121098396,0.98655418,651.27,650.21,1.51413901]
[1750121098604,1.14235321,651.26,650.24,1.51413901]
[1750121098896,3.43088041,651.26,650.25,0.307574]
[1750121099202,2.28920589,651.25,650.25,0.307574]
[1750121099496,3.4315591,651.25,650.29,1.51413901]
[1750121099700,2.28920589,651.24,650.29,1.51413901]
[1750121100314,0.98723287,651.24,650.3,0.30755036]
[1750121100504,0.98802345,651.26,650.32,1.51413901]
[1750121100706,2.29105841,651.29,650.33,0.30753617]
[1750121101005,2.29105841,651.29,650.33,1.82167518]
[1750121101305,0.98802345,651.29,650.33,1.82167518]
[1750121101499,2.29229613,651.3,650.33,1.82167518]
[1750121101802,3.43464934,651.3,650.37,1.51413901]
[1750121102001,0.98802345,651.29,650.38,1.82165154]
[1750121102205,1.14235321,651.3,650.39,0.3075078]
[1750121102601,1.14235321,651.28,650.43,1.51413901]
[1750121102801,1.14235321,651.28,650.42,1.51413901]
[1750121103608,1.14235321,651.24,650.45,1.51413901]
[1750121104304,1.14235321,651.24,650.46,1.51413901]
[1750121104707,1.14235321,651.23,650.47,1.51413901]
[1750121105708,1.14235321,651.22,650.48,1.51413901]
[1750121105905,1.14235321,651.21,650.52,1.51413901]
[1750121106115,1.52313761,651.33,650.52,1.51413901]
[1750121106116,1.14235321,651.2,650.52,1.51413901]
[1750121106405,1.14235321,651.2,650.54,1.51413901]
[1750121106605,1.14235321,651.18,650.56,1.51413901]
[1750121106809,1.14235321,651.19,650.57,1.51413901]
[1750121107806,1.14235321,651.18,650.57,1.51413901]
[1750121108009,1.14235321,651.19,650.57,1.51413901]
[1750121108209,1.14235321,651.19,650.56,1.51413901]
[1750121108511,1.14235321,651.17,650.56,1.51413901]
[1750121108706,1.52313761,651.29,650.55,1.51413901]
[1750121108707,1.14235321,651.18,650.55,1.51413901]
[1750121109612,1.14235321,651.18,650.56,1.51413901]
[1750121110207,1.14235321,651.18,650.55,1.51413901]
[1750121112419,1.14235321,651.18,650.39,0.3075078]
[1750121112420,1.14235321,651.18,650.56,1.51413901]
[1750121112811,1.14235321,651.18,650.55,1.51413901]
[1750121114114,2.14367506,651.25,650.52,1.51413901]
[1750121114313,2.1436635,651.24,650.53,1.51413901]
[1750121114514,1.14235321,651.37,650.5,1.51413901]
[1750121114716,1.14235321,651.38,650.5,1.51413901]
[1750121114909,1.14235321,651.39,650.51,1.51413901]
[1750121115109,1.14235321,651.4,650.52,1.51413901]
[1750121115511,1.14235321,651.41,650.53,1.51413901]
[1750121115714,1.14235321,651.42,650.52,1.51413901]
[1750121115913,2.28470642,651.79,650.53,1.51413901]
[1750121115914,1.14235321,651.43,650.53,1.51413901]
[1750121116412,1.14235321,651.42,650.53,1.51413901]
[1750121116611,1.14235321,651.43,650.52,1.51413901]
[1750121117113,2.14276935,651.43,650.52,1.51413901]
[1750121117317,1.00041614,651.42,650.53,1.51413901]
[1750121117511,1.14235321,651.44,650.52,1.51413901]
[1750121119011,1.14235321,651.45,650.52,1.51413901]
[1750121119615,1.14235321,651.45,650.53,0.30744162]
[1750121120913,2.14276935,651.45,650.53,0.30744162]
[1750121121113,1.00041614,651.44,650.53,0.30744162]
[1750121121618,1.14235321,651.41,650.63,1.51413901]
[1750121121813,1.14235321,651.48,650.61,1.51413901]
[1750121122119,1.14235321,651.5,650.62,1.51413901]
[1750121122618,1.14235321,651.5,650.6,1.51413901]
[1750121122920,1.14235321,651.5,650.61,1.82154283]
[1750121123319,1.14235321,651.5,650.61,0.30740382]
[1750121123515,1.14235321,651.51,650.61,0.30740382]
[1750121124715,2.14155701,651.52,650.61,0.30740382]
[1750121124919,0.9992038,651.51,650.61,0.30740382]
[1750121125321,1.14235321,651.52,650.61,0.30740382]
[1750121125523,1.14235321,651.55,650.61,0.30740382]
[1750121126422,1.14235321,651.56,650.61,0.30740382]
[1750121126817,1.14235321,651.6,650.61,1.82154283]
[1750121127121,0.99850111,651.6,650.62,1.51413901]
[1750121127322,0.99850111,651.61,650.62,1.51413901]
[1750121127519,2.45139789,651.61,650.61,0.30740382]
[1750121127722,0.99850111,651.6,650.61,0.30740382]
[1750121128018,0.99850111,651.6,650.61,1.82154283]
[1750121128222,2.1399806,651.62,650.61,1.82154283]
[1750121128417,0.99762739,651.61,650.61,1.82154283]
[1750121128722,1.14235321,651.63,650.61,0.30740382]
[1750121130024,1.14235321,651.68,650.67,1.51413901]
[1750121130221,1.14235321,651.66,650.66,1.51413901]
[1750121130621,1.14235321,651.67,650.68,1.51413901]
[1750121130823,1.14235321,651.66,650.68,1.51413901]
[1750121131020,1.14235321,651.67,650.69,1.51413901]
[1750121131221,1.14235321,651.69,650.72,1.51413901]
[1750121131425,1.14235321,651.68,650.71,1.51413901]
[1750121131625,1.14235321,651.69,650.69,1.51413901]
[1750121132028,1.14235321,651.69,650.69,1.82150503]
[1750121132223,1.14235321,651.73,650.74,1.51413901]
[1750121132424,1.14235321,651.73,650.75,1.51413901]
[1750121132628,1.14235321,651.73,650.73,1.51413901]
[1750121132928,2.30432172,651.73,650.71,1.51413901]
[1750121133136,1.14235321,651.69,650.7,0.3073613]
[1750121133431,1.14235321,651.63,650.7,0.3073613]
[1750121133827,1.14235321,651.62,650.7,0.3073613]
[1750121135028,1.14235321,651.61,650.7,0.3073613]
[1750121135929,3.4462497,651.61,650.7,0.3073613]
[1750121136129,0.99617784,651.6,650.7,0.3073613]
[1750121136429,0.996211,651.6,650.7,0.3073613]
[1750121136626,1.14235321,651.62,650.7,0.3073613]
[1750121136930,1.14235321,651.61,650.7,0.3073613]
[1750121137530,1.14235321,651.62,650.61,1.51413901]
[1750121137730,1.14235321,651.61,650.6,1.51413901]
[1750121138026,1.14235321,651.62,650.61,1.51413901]
[1750121138225,1.14235321,651.63,650.58,1.51413901]
[1750121139026,3.44524743,651.63,650.57,1.51413901]
[1750121139226,2.30289422,651.62,650.57,1.51413901]
[1750121139425,3.44524743,651.62,650.57,1.51413901]
[1750121139629,2.30289422,651.61,650.57,1.51413901]
[1750121139930,0.996211,651.6,650.57,1.51413901]
[1750121140126,2.30813803,651.62,650.57,1.51413901]
[1750121141927,1.31192703,651.62,650.57,1.51413901]
[1750121142132,0.99633283,651.62,650.57,1.51413901]
[1750121142732,1.31192703,651.62,650.61,1.51413901]
[1750121142927,2.30825986,651.62,650.61,1.51413901]
[1750121143128,0.99633283,651.62,650.62,1.51413901]
[1750121143426,2.30808439,651.65,650.63,1.51413901]
[1750121144331,0.99633283,651.64,650.65,1.51413901]
[1750121144531,2.30776158,651.67,650.65,1.51413901]
[1750121144730,2.30774913,651.66,650.65,1.51413901]
[1750121144933,0.99618369,651.65,650.65,1.51413901]
[1750121145131,2.30774347,651.68,650.65,1.51413901]
[1750121145330,0.99618369,651.68,650.68,1.51413901]
[1750121145530,2.30768926,651.7,650.68,1.51413901]
[1750121145731,0.99618369,651.69,650.69,1.51413901]
[1750121145931,0.99618369,651.72,650.63,1.51413901]
[1750121146131,2.30767021,651.75,650.63,1.51413901]
[1750121146533,2.30767021,651.74,650.63,1.51413901]
[1750121146737,0.99618369,651.73,650.63,1.51413901]
[1750121146934,1.14235321,651.71,650.41,1.51413901]
[1750121147333,1.14235321,651.69,650.44,1.51413901]
[1750121147733,1.14235321,651.68,650.44,1.51413901]
[1750121148646,2.30698485,651.68,650.47,1.51413901]
[1750121148840,2.30698485,651.67,650.47,1.51413901]
[1750121149039,2.30698485,651.66,650.47,1.51413901]
[1750121149339,2.30698485,651.65,650.47,1.51413901]
[1750121149635,0.99586457,651.64,650.47,1.51413901]
[1750121149837,2.82744706,651.73,650.47,1.51413901]
[1750121150033,2.30709929,651.73,650.47,1.51413901]
[1750121150339,0.99595252,651.72,650.47,1.51413901]
[1750121150639,0.99595252,651.72,650.5,1.51413901]
[1750121150839,2.82753575,651.72,650.5,1.51413901]
[1750121151037,2.30718724,651.72,650.5,1.51413901]
[1750121151334,2.30718724,651.72,650.51,1.51413901]
[1750121151541,0.52045772,651.71,650.51,1.51413901]
[1750121151834,2.82764496,651.71,650.51,1.51413901]
[1750121152039,2.30718724,651.71,650.51,1.51413901]
[1750121152635,2.30718724,651.71,650.52,1.51413901]
[1750121152835,2.30718724,651.71,650.53,1.51413901]
[1750121153039,0.99620851,651.7,650.53,1.51413901]
[1750121153240,2.30744323,651.71,650.53,1.51413901]
[1750121153536,3.44979644,651.71,650.53,1.51413901]
[1750121153739,2.30744323,651.7,650.53,1.51413901]
[1750121154637,2.30744323,651.7,650.54,1.51413901]
[1750121155040,1.31208592,651.69,650.54,1.51413901]
[1750121155240,2.30829443,651.7,650.54,1.51413901]
[1750121155837,1.14235321,651.71,650.54,1.51413901]
[1750121156641,1.14235321,651.71,650.55,1.51413901]
[1750121156941,1.14235321,651.69,650.6,1.51413901]
[1750121157138,2.45444199,651.69,650.6,1.51413901]
[1750121157441,2.30897186,651.68,650.6,1.51413901]
[1750121158342,3.45132507,651.68,650.64,1.51413901]
[1750121158542,1.14235321,651.63,650.6,1.51413901]
[1750121158940,1.14235321,651.64,650.61,0.30740382]
[1750121159138,0.99735065,651.64,650.61,0.30740382]
[1750121159338,0.99866555,651.63,650.61,0.30740382]
[1750121159543,0.99866555,651.62,650.61,0.30740382]
[1750121159743,0.99866555,651.61,650.61,0.30740382]
[1750121159940,0.99866555,651.6,650.61,0.30740382]
[1750121160239,0.99866555,651.59,650.61,0.30740382]
[1750121160439,0.99866555,651.58,650.61,0.30740382]
[1750121160641,0.99866555,651.57,650.61,0.30740382]
[1750121160938,0.99866555,651.56,650.61,0.30740382]
[1750121161138,0.99866555,651.55,650.61,0.30740382]
[1750121161340,0.99866555,651.54,650.61,0.30740382]
[1750121161641,0.99866555,651.53,650.61,0.30740382]
[1750121161842,0.99866555,651.52,650.61,0.30740382]
[1750121162042,0.99866555,651.51,650.61,0.30740382]
[1750121162242,0.99866555,651.5,650.61,0.30740382]
[1750121162540,0.99866555,651.49,650.61,0.30740382]
[1750121162739,0.99866555,651.48,650.61,0.30740382]
[1750121162938,0.99866555,651.47,650.61,0.30740382]
[1750121163139,0.99740639,651.7,650.61,0.30740382]
[1750121163344,0.99882721,651.69,650.61,0.30740382]
[1750121163643,0.99882721,651.68,650.61,0.30740382]
[1750121163840,0.99882721,651.67,650.61,0.30740382]
[1750121164038,0.99882721,651.66,650.61,0.30740382]
[1750121164238,0.99882721,651.65,650.61,0.30740382]
[1750121164543,0.99882721,651.64,650.61,0.30740382]
[1750121164743,0.99882721,651.63,650.61,0.30740382]
[1750121165040,0.99882721,651.62,650.61,0.30740382]
[1750121165243,0.99882721,651.61,650.61,0.30740382]
[1750121165442,0.99882721,651.6,650.61,0.30740382]
[1750121165639,1.52313761,652.03,650.61,0.30740382]
[1750121165640,0.99882721,651.59,650.61,0.30740382]
[1750121165842,0.99882721,651.58,650.61,0.30740382]
[1750121166039,0.99882721,651.57,650.61,0.30740382]
[1750121166239,0.99882721,651.56,650.61,0.30740382]
[1750121166442,0.99882721,651.55,650.61,0.30740382]
[1750121166742,1.14235321,651.82,650.61,0.30740382]
[1750121166743,0.99882721,651.54,650.61,0.30740382]
[1750121166943,0.99882721,651.53,650.61,0.30740382]
[1750121167143,0.99882721,651.52,650.61,0.30740382]
[1750121167341,0.99882721,651.51,650.61,0.30740382]
[1750121167544,0.99882721,651.5,650.61,0.30740382]
[1750121167744,0.99882721,651.49,650.61,0.30740382]
[1750121167944,0.99882721,651.48,650.61,0.30740382]
[1750121168244,0.99882721,651.47,650.61,0.30740382]
[1750121168442,0.99882721,651.46,650.61,0.30740382]
[1750121168639,0.99882721,651.45,650.61,0.30740382]
[1750121168840,0.99882721,651.44,650.61,0.30740382]
[1750121169045,0.99805977,651.69,650.61,0.30740382]
[1750121169240,0.99949552,651.68,650.61,0.30740382]
[1750121169444,0.99949552,651.67,650.61,0.30740382]
[1750121169644,0.99949552,651.66,650.61,0.30740382]
[1750121169842,0.99949552,651.65,650.61,0.30740382]
[1750121170043,0.99949552,651.64,650.61,0.30740382]
[1750121170243,0.99949552,651.63,650.61,0.30740382]
[1750121170444,0.99949552,651.62,650.61,0.30740382]
[1750121170648,0.26719081,651.59,650.86,0.26719081]
[1750121170849,0.99949552,651.58,650.86,0.57447655]
[1750121171042,0.99949552,651.57,650.86,0.57447655]
[1750121171249,0.99949552,651.56,650.86,0.57447655]
[1750121171544,0.99949552,651.55,650.86,0.57447655]
[1750121171749,0.99949552,651.54,650.86,0.57447655]
[1750121172049,0.99949552,651.53,650.86,0.57447655]
[1750121172345,0.99949552,651.52,650.86,0.57447655]
[1750121172650,0.99949552,651.51,650.86,0.57447655]
[1750121172845,0.99949552,651.5,650.86,0.57447655]
[1750121173047,0.99949552,651.49,650.86,0.57447655]
[1750121173351,0.99949552,651.48,650.86,0.57447655]
[1750121173549,0.99949552,651.47,650.86,0.57447655]
[1750121173747,0.99949552,651.46,650.86,0.57447655]
[1750121173946,0.99949552,651.45,650.86,0.57447655]
[1750121174149,0.99949552,651.44,650.86,0.57447655]
[1750121174449,0.99949552,651.43,650.86,0.57447655]
[1750121174650,0.26719081,651.59,650.86,0.57447655]
[1750121174851,1.00111456,651.58,650.86,0.57447655]
[1750121175151,1.00111456,651.57,650.86,0.57447655]
[1750121175346,1.00111456,651.56,650.86,0.57447655]
[1750121175551,1.00111456,651.55,650.86,0.57447655]
[1750121175851,1.00111456,651.54,650.86,0.57447655]
[1750121176151,1.00111456,651.53,650.86,0.57447655]
[1750121176350,1.00111456,651.52,650.86,0.57447655]
[1750121177052,1.00111456,651.51,650.86,0.57447655]
[1750121177253,0.26719081,651.59,650.86,0.57447655]
[1750121177752,1.00143043,651.58,650.86,0.57447655]
[1750121178653,0.26719081,651.59,650.86,0.57447655]
[1750121179871,1.00171288,651.58,650.86,0.57447655]
[1750121185556,1.00171288,651.57,650.89,2.27120852]
[1750121190460,1.00171288,651.56,650.89,2.27120852]
[1750121190659,1.00171288,651.55,650.9,2.27120852]
[1750121190955,1.00171288,651.54,650.96,2.27120852]
[1750121191154,1.00171288,651.53,650.97,2.27120852]
[1750121191358,1.00171288,651.52,650.98,2.27120852]
[1750121191559,0.26714056,651.67,650.97,2.27120852]
[1750121191855,1.00226508,651.66,650.86,0.57447655]
[1750121192059,1.00226508,651.65,650.86,0.57447655]
[1750121192255,1.00226508,651.64,650.86,0.57447655]
[1750121192456,1.00226508,651.63,650.86,0.57447655]
[1750121192660,1.00226508,651.62,650.86,0.57447655]
[1750121192860,1.00226508,651.61,650.86,0.57447655]
[1750121193161,1.00226508,651.6,650.86,0.57447655]
[1750121193457,1.00226508,651.59,650.86,0.57447655]
[1750121193758,1.00226508,651.58,650.86,0.57447655]
[1750121193965,1.00226508,651.57,650.87,0.30728102]
[1750121194159,1.00226508,651.56,650.87,0.30728102]
[1750121194360,1.00226508,651.55,650.87,0.30728102]
[1750121194662,1.00226508,651.54,650.87,0.30728102]
[1750121194956,0.26712108,651.79,650.87,0.30728102]
[1750121195159,1.0016561,651.78,650.87,0.30728102]
[1750121195356,1.0016561,651.77,650.87,0.30728102]
[1750121195557,1.0016561,651.76,650.87,0.30728102]
[1750121195757,1.0016561,651.75,650.87,0.30728102]
[1750121196061,1.0016561,651.74,650.87,0.30728102]
[1750121196262,1.0016561,651.73,650.87,0.30728102]
[1750121196461,1.0016561,651.72,650.87,0.30728102]
[1750121196657,1.0016561,651.71,650.87,0.30728102]
[1750121196861,1.0016561,651.7,650.87,0.30728102]
[1750121197060,1.0016561,651.69,650.87,0.30728102]
[1750121197257,1.0016561,651.68,650.87,0.30728102]
[1750121197462,1.0016561,651.67,650.87,0.30728102]
[1750121197657,1.0016561,651.66,650.87,0.30728102]
[1750121197859,1.0016561,651.65,650.87,0.30728102]
[1750121198162,1.0016561,651.64,650.87,0.30728102]
[1750121198356,1.0016561,651.63,650.87,0.30728102]
[1750121198556,1.0016561,651.62,650.87,0.30728102]
[1750121198762,1.0016561,651.61,650.87,0.30728102]
[1750121198963,1.0016561,651.6,650.87,0.30728102]
[1750121199158,1.0016561,651.59,650.87,0.30728102]
[1750121199359,1.0016561,651.58,650.87,0.30728102]
[1750121199558,1.0016561,651.57,650.87,0.30728102]
[1750121199863,1.0016561,651.56,650.87,0.30728102]
[1750121200061,0.26712108,651.79,650.87,0.30728102]
[1750121200262,1.00105475,651.78,650.87,0.30728102]
[1750121200561,1.00105475,651.77,650.87,0.30728102]
[1750121200758,1.00105475,651.76,650.87,0.30728102]
[1750121200959,1.00105475,651.75,650.87,0.30728102]
[1750121201170,1.00105475,651.74,650.87,0.30728102]
[1750121201358,1.00105475,651.73,650.87,2.57848954]
[1750121201559,1.00105475,651.72,650.87,2.57848954]
[1750121201758,1.00105475,651.71,650.87,2.57848954]
[1750121201957,1.00105475,651.7,650.87,2.57848954]
[1750121202258,1.00105475,651.69,650.88,2.27120852]
[1750121202459,0.26712108,651.79,650.89,0.30727158]
[1750121202460,1.00105475,651.68,650.89,0.30727158]
[1750121202658,1.14734783,651.96,650.91,2.27120852]
[1750121202963,1.00052029,651.95,650.94,2.27120852]
[1750121203264,0.26704729,651.92,650.95,0.30724325]
[1750121203562,1.00052029,651.91,650.96,2.27120852]
[1750121203765,1.00052029,651.9,651.05,2.27120852]
[1750121203963,1.00052029,651.89,651.05,2.27120852]
[1750121204164,1.00052029,651.88,651.06,2.27120852]
[1750121204464,1.00052029,651.87,651.05,2.27120852]
[1750121204760,1.00052029,651.86,651.06,2.27120852]
[1750121204965,1.00052029,651.85,651.06,2.27120852]
[1750121205164,0.26702577,652.03,651.06,2.57839986]
[1750121205360,0.99907205,652.02,651.07,0.30718663]
[1750121205565,0.99907205,652.01,651.07,0.30718663]
[1750121205765,0.99907205,652.0,651.07,0.30718663]
[1750121205964,0.99907205,651.99,651.07,0.30718663]
[1750121206161,0.99907205,651.98,651.07,0.30718663]
[1750121206365,0.99907205,651.97,651.07,0.30718663]
[1750121206562,0.99907205,651.96,651.07,0.30718663]
[1750121206862,0.99907205,651.95,651.07,0.30718663]
[1750121207066,0.99907205,651.94,651.07,0.30718663]
[1750121207262,0.99907205,651.93,651.07,0.30718663]
[1750121207568,0.99907205,651.92,651.07,0.30718663]
[1750121207765,0.99907205,651.91,651.07,0.30718663]